[Event "Polish Youth B18 Championship 2023"]
[Site "Jastrzebia Gora"]
[Date "2023.03.13"]
[Round "2.2"]
[White "Dziendziel, Mateusz"]
[Black "Karolczuk, Iwo"]
[Result "1-0"]
[ECO "C44"]
[WhiteElo "2084"]
[BlackElo "2346"]
[Annotator "TA"]
[PlyCount "119"]
[EventDate "2023.03.11"]
[EventType "swiss"]
[EventCountry "POL"]
[SourceTitle "playchess.com"]
[Source "ChessBase"]
[SourceQuality "1"]
[TimeControl "40/5400+30:1800+30"]

{[%evp 23,119,4,16,0,14,0,0,0,37,0,0,0,14,11,19,0,0,0,0,0,0,0,9,7,13,0,109,100,104,105,109,112,134,120,156,120,131,80,120,40,43,17,14,0,155,158,160,166,162,154,215,199,212,176,433,352,504,387,421,416,743,708,622,558,613,580,572,518,557,565,562,533,561,558,556,515,511,514,518,526,508,501,1708,1675,6079,6079,29968,3853,29966,29967,12812,12843,2668,1357,2616,2313,5373,4896]} 1. e4 {[%emt 0:00:02]} e5 {[%emt 0:00:04]} 2. Nf3 {[%emt 0:00:08]} Nc6 3. d4 {[%emt 0:00:04]} exd4 {[%emt 0:00:19]} 4. Nxd4 {[%emt 0:00:02]} Nf6 {[%emt 0:01:20]} 5. Nc3 {[%emt 0:00:06]} Bb4 {[%emt 0:00:11]} 6. Nxc6 {[%emt 0:00:24]} bxc6 {[%emt 0:00:11]} 7. Bd3 {[%emt 0:00:23]} d5 {[%emt 0:03:08]} 8. exd5 {[%emt 0:00:26]} cxd5 {[%emt 0:00:25]} 9. O-O {[%emt 0:00:09]} O-O {[%emt 0:00:40]} 10. Bg5 {[%emt 0:00:18]} c6 {[%emt 0:10:06]} 11. Qf3 {[%emt 0:00:33]} Be7 {[%emt 0:13:34]} 12. h3 {[%emt 0:03:12]} h6 {[%emt 0:04:57]} 13. Bf4 {[%emt 0:00:02] 13.Bf4 is better than 13.Bh4. C47: Scotch Four Knights and Four Knights with 4 g3.} Be6 {[%emt 0:02:11]} 14. Rad1 {[%emt 0:09:52]} Nd7 {[%emt 0:14:21]} 15. Rfe1 {[%emt 0:18:03] The position is equal.} Bf6 {[%emt 0:05:06] [#]} 16. Qh5 $146 {[%emt 0:10:17][%cal Of4h6]} ({Predecessor:} 16. Na4 Re8 17. b3 Qa5 18. Qg3 Kh8 19. a3 d4 20. Re2 Nb6 21. Re5 Bxe5 22. Bxe5 {1-0 Duran Albareda,X (2247)-Bru Rullo,L (2140) Catalunya-chT Gp2 2015 (6.4)}) 16... Re8 {[%emt 0:09:32]} 17. Na4 {[%emt 0:11:06] Against Qb6} Qa5 {[%emt 0:03:53]} 18. b3 {[%emt 0:00:55]} Qb4 {[%emt 0:01:43]} 19. Bd2 {[%emt 0:14:00]} Qd6 {[%emt 0:03:03]} 20. Qf3 {[%emt 0:03:30]} Be5 {[%emt 0:06:59]} 21. Kh1 {[%emt 0:04:34]} Qc7 {[%emt 0:02:13]} 22. c4 {[%emt 0:01:18]} Bf6 {[%emt 0:03:41]} 23. Bf4 {[%emt 0:01:08]} Qa5 {[%emt 0:00:31]} 24. c5 {[%emt 0:01:39]} Qd8 {[%emt 0:08:44] [#]} (24... Nxc5 $2 25. Bd2 Qd8 26. Nxc5 $18) (24... Nf8 $11 25. Re2 Bg5) 25. Ba6 $1 $16 {[%emt 0:00:36] White has more active pieces.} Rb8 {[%emt 0:01:30] Repels Bb7} 26. Bxb8 {[%emt 0:04:49]} Qxb8 {[%emt 0:00:07]} 27. a3 {[%emt 0:01:51]} Be5 {[%emt 0:02:28]} 28. b4 {[%emt 0:01:07]} Bc7 {[%emt 0:01:03]} 29. Qe2 {[%emt 0:02:44]} Qd8 {[%emt 0:00:43]} 30. Qh5 {[%emt 0:05:57] Dodges Qh4} ({White should play} 30. Nc3) 30... Bb8 {[%emt 0:00:49]} 31. Bd3 {[%emt 0:01:40]} (31. g3 $6 Nf6 32. Qh4 Bf5 $11) (31. Nc3 $16) 31... Qf6 $1 $14 {[%emt 0:01:07] [#] Strongly threatening ...Qf4.} 32. Re2 {[%emt 0:00:52]} (32. Qf3 {simplifies} Qxf3 33. gxf3 Ne5 34. Be2) 32... Ne5 {[%emt 0:00:18]} 33. Nb2 {[%emt 0:02:33][%cal Ba4b2,Bb2d3,Bd3e5][%mdl 32]} Qf4 $2 {[%emt 0:00:41] White stays focused until the end.} ({Black should try} 33... g6 $1 $11 34. Qxh6 Nf3) 34. g3 $16 {[%emt 0:00:32]} Qf6 {[%emt 0:00:15] ...g6 is the strong threat.} 35. f4 {[%emt 0:00:35]} Nxd3 {[%emt 0:00:32]} 36. Nxd3 {[%emt 0:00:06]} ({Much less strong is} 36. Rxd3 Rd8 $16) 36... d4 {[%emt 0:00:56]} (36... Qc3 $16 37. Qf3 Rf8) 37. Kh2 $18 {[%emt 0:00:51]} Rd8 {[%emt 0:00:44]} 38. Ne5 {[%emt 0:01:02]} Bd5 {[%emt 0:00:48]} (38... Rd5 39. Rdd2 Kh7) 39. Rxd4 {[%emt 0:00:43][%cal Bd1d4,Bd4d2,Bd2d5][%mdl 32]} Re8 {[%emt 0:00:31]} (39... g6 $142 40. Qh4 Qxh4 41. gxh4 Re8) 40. Rdd2 {[%emt 0:00:00]} Re7 {[%emt 0:00:00]} 41. Re3 {[%emt 0:27:09] And now Ng4 would win.} g5 {[%emt 0:07:42]} (41... Re6 $142 42. Qe2 Bc7) 42. Ng4 {[%emt 0:03:06][%csl LRf6,LRh6]} Qa1 {[%emt 0:00:27]} 43. Rxd5 {[%emt 0:01:46] Rd8+ would kill now.} (43. Rxe7 $2 Qh1#) 43... Qb2+ {[%emt 0:09:05]} 44. Kg1 {[%emt 0:00:13][%cal Bh2g1,Bg1f2,Bf2e1][%mdl 32] Intending Rd8+ and mate.} Qb1+ {[%emt 0:01:34]} 45. Kf2 {[%emt 0:00:20]} Qa2+ {[%emt 0:00:20]} 46. Ke1 {[%emt 0:01:10] White threatens Rd8+ and mate.} Rxe3+ {[%emt 0:00:37]} 47. Nxe3 {[%emt 0:00:02] Hoping for Rd8+.} cxd5 {[%emt 0:00:42]} 48. Qxh6 {[%emt 0:00:40]} (48. fxg5 $2 Bxg3+ 49. Kd1 Qb1+ 50. Kd2 Qb2+ 51. Kd1 Bf4 $19) 48... gxf4 {[%emt 0:04:33][%mdl 4096] Endgame KQB-KQN} 49. Qg5+ {[%emt 0:00:11]} Kh7 {[%emt 0:01:12]} 50. gxf4 {[%emt 0:00:38]} ({Not} 50. Nxd5 Qb1+ 51. Ke2 Qc2+ 52. Kf3 Qd1+ 53. Ke4 Qc2+ 54. Kd4 Qf2+ 55. Kd3 Qf3+ 56. Kc2 Qe2+ 57. Kb3 Qd1+ 58. Kc3 Be5+ 59. Kc4 Qd4+ 60. Kb5 Qxd5 61. Qf5+ (61. gxf4 Qd3+ 62. Ka4 Qa6+ 63. Kb3 Qe6+ 64. Ka4 Qa6+ 65. Kb3 Qe6+ 66. Ka4 Qc6+ 67. Kb3 Qe6+ $11) 61... Kg8 62. gxf4 a6+ {[%mdl 64] Decoy} 63. Kxa6 Qc6+ 64. Ka7 Qc7+ 65. Ka6 Qc6+ 66. Ka7 Qc7+ 67. Ka6 Qc6+ $11) 50... Qxa3 {[%emt 0:02:34]} 51. Qh5+ {[%emt 0:00:28]} Kg8 {[%emt 0:00:38]} 52. Nxd5 {[%emt 0:00:50] Black must now prevent Qg5+.} Qc1+ {[%emt 0:01:13]} (52... Qg3+ $142 53. Kf1 Qd3+ 54. Kf2 Qd4+ 55. Kg3 Kf8 56. Qh6+ Ke8 57. Qc6+ Kd8) 53. Qd1 {[%emt 0:00:19]} Qc4 {[%emt 0:01:11]} 54. Qg4+ {[%emt 0:00:05]} Kh8 {[%emt 0:03:21]} 55. Qc8+ {[%emt 0:00:20]} (55. Qh4+ $142 Kg8 56. Qg5+ Kf8 57. Qd8+ Kg7 58. Qg5+ Kf8 59. Qd8+ Kg7 60. Qf6+ {[%mdl 64] Deflection} Kh7 61. Qxf7+ Kh6 62. Qe6+ Kg7 63. Qe7+ Kh8 64. Qe8+ Kh7 65. Nf6+ Kh6 66. Ng4+ Kg7 67. Qxb8) 55... Kh7 {[%emt 0:00:17]} 56. Qf5+ {[%emt 0:00:29]} Kg8 {[%emt 0:01:50]} 57. Qg5+ {[%emt 0:00:06] White is clearly winning.} Kf8 {[%emt 0:00:16]} 58. Qd8+ {[%emt 0:00:06]} Kg7 {[%emt 0:00:05]} 59. Qxb8 {[%emt 0:00:27] White wants to mate with Qe5+.} Qe4+ {[%emt 0:02:03]} 60. Kf2 {[%emt 0:00:18] A cool game by Dziendziel.   Weighted Error Value: White=0.17 (very precise) /Black=0.29 (precise)} 1-0

[Event "Polish Youth B18 Championship 2023"]
[Site "Jastrzebia Gora"]
[Date "2023.03.13"]
[Round "2.3"]
[White "Budzisz, Adrian"]
[Black "Dzida, Kamil"]
[Result "0-1"]
[ECO "E04"]
[WhiteElo "2069"]
[BlackElo "2333"]
[Annotator "TA"]
[PlyCount "58"]
[EventDate "2023.03.11"]
[EventType "swiss"]
[EventCountry "POL"]
[SourceTitle "playchess.com"]
[Source "ChessBase"]
[SourceQuality "1"]
[TimeControl "40/5400+30:1800+30"]

{[%evp 11,58,5,30,28,28,0,4,0,0,0,0,0,0,0,0,0,0,0,0,0,6,6,6,6,0,-75,-74,-95,-91,-285,-304,-320,-316,-327,-299,-291,-205,-272,-272,-266,-264,-343,-341,-476,-458,-777,-776,-996,-749]} 1. d4 {[%emt 0:00:03]} Nf6 {[%emt 0:00:10]} 2. c4 {[%emt 0:00:08]} e6 {[%emt 0:00:08]} 3. g3 {[%emt 0:00:05]} d5 {[%emt 0:00:10]} 4. Nf3 {[%emt 0:00:08]} dxc4 {[%emt 0:00:42]} 5. Bg2 {[%emt 0:00:11]} Bb4+ {[%emt 0:00:09]} 6. Bd2 {[%emt 0:00:57]} a5 {[%emt 0:00:06]} 7. Qc2 {[%emt 0:00:32] E04: Open Catalan: 5 Nf3.} Bxd2+ {[%emt 0:01:39]} 8. Nbxd2 {[%emt 0:00:59]} b5 {[%emt 0:00:24]} 9. a4 {[%emt 0:01:38] The position is equal.} c6 {[%emt 0:02:09]} 10. O-O {[%emt 0:01:49]} O-O {[%emt 0:03:22]} 11. b3 {[%emt 0:03:23]} cxb3 {[%emt 0:01:56]} 12. Nxb3 {[%emt 0:00:06]} b4 {[%emt 0:10:02]} 13. e4 {[%emt 0:04:25] Prevents Nd5.} Nbd7 {[%emt 0:08:59]} 14. Rfd1 {[%emt 0:05:52]} Bb7 {[%emt 0:07:48][%cal Oc6c5]} 15. Nfd2 {[%emt 0:06:01]} Qc7 {[%emt 0:23:51]} 16. Nc4 {[%emt 0:05:33] [#]} Rfd8 $146 {[%emt 0:03:59]} ({Predecessor:} 16... h6 17. Rac1 Rfd8 18. h3 Rdb8 19. Rd2 Rd8 20. Qd1 c5 21. d5 exd5 22. exd5 Rdb8 {½-½ Miciak,E (2379)-Yaroshenko,Y (2414) ICCF Slav Cup4 email 2013 [3]}) 17. f4 {[%emt 0:02:29]} Rdc8 {[%emt 0:05:04][%cal Of6d5]} 18. h3 {[%emt 0:02:23] [#]} (18. Rac1 $11) 18... Nd5 $1 $17 {[%emt 0:02:54][%cal Ob7a6]} 19. Rd2 {[%emt 0:12:50]} (19. exd5 $2 cxd5 20. Ne3 Qxc2 21. Nxc2 Rxc2 $19) (19. Nbxa5 Ba6) 19... Nc3 {[%emt 0:00:48]} 20. Qb2 $2 {[%emt 0:00:12] This costs White the game.} (20. Kh2 $17 {was called for.}) 20... c5 $19 {[%emt 0:05:52]} 21. d5 Nb6 {[%emt 0:00:12]} 22. Nbxa5 {[%emt 0:03:34]} exd5 {[%emt 0:05:06]} (22... Nbxa4 23. Qb3 Rxa5 24. dxe6 $15) 23. Nxb6 {[%emt 0:01:38]} Rxa5 {[%emt 0:06:20]} 24. Nxd5 {[%emt 0:05:05]} Bxd5 {[%emt 0:00:16]} 25. exd5 {[%emt 0:00:14]} Qd6 {[%emt 0:00:01]} ({And not} 25... Nxa4 26. Qe5 Qxe5 27. fxe5 $17) ({Inferior is} 25... Rxa4 26. d6 Rxa1+ 27. Qxa1 $17) 26. Rd3 {[%emt 0:01:15]} Rxa4 {[%emt 0:02:29]} (26... Nxa4 $2 {too greedy.} 27. Qe5 Qxe5 28. fxe5 $19) 27. Rxa4 {[%emt 0:02:32]} Nxa4 {[%emt 0:00:05] Black is clearly winning.} 28. Qc2 {[%emt 0:00:03]} (28. Qe2 $142 c4 29. Re3) 28... c4 {[%emt 0:00:54] Hoping for ...Qc5+.} 29. Re3 {[%emt 0:00:32]} b3 {[%emt 0:01:11] Weighted Error Value: White=0.63/Black=0.06 (flawless)} 0-1

[Event "Polish Youth B18 Championship 2023"]
[Site "Jastrzebia Gora"]
[Date "2023.03.13"]
[Round "2.4"]
[White "Wilk, Igor"]
[Black "Zdybel, Przemyslaw"]
[Result "1-0"]
[ECO "C90"]
[WhiteElo "2058"]
[BlackElo "2268"]
[Annotator "TA"]
[PlyCount "141"]
[EventDate "2023.03.11"]
[EventType "swiss"]
[EventCountry "POL"]
[SourceTitle "playchess.com"]
[Source "ChessBase"]
[SourceQuality "1"]
[TimeControl "40/5400+30:1800+30"]

{[%evp 19,141,9,12,0,5,9,36,22,28,37,22,37,26,33,25,33,29,30,33,7,6,7,8,0,0,-20,-22,-100,-50,-59,-37,-41,-13,-12,-6,-8,0,-7,-6,-17,0,-9,0,-58,0,0,25,-45,-14,-64,-55,-38,-43,-42,0,0,18,8,12,11,35,-80,-82,-87,-68,-97,-87,-204,-191,-187,-158,-158,0,0,0,0,0,-8,0,0,0,0,177,177,177,177,177,177,606,577,629,629,1324,1261,1348,1217,912,432,975,885,1185,1154,1049,1004,2169,2038,2104,1829,2123,1564,29965,6195,5549,2789,1629,1821,29981,29982,29982,29983,29983,29983,29983,29984]} 1. e4 {[%emt 0:00:04]} e5 {[%emt 0:01:34]} 2. Nf3 {[%emt 0:00:21]} Nc6 {[%emt 0:00:12]} 3. Bb5 {[%emt 0:00:25][%cal Bf1b5,Bb5a4,Ba4b3][%mdl 32]} a6 {[%emt 0:00:12]} 4. Ba4 {[%emt 0:00:06]} Nf6 {[%emt 0:00:14]} 5. d3 {[%emt 0:00:36]} b5 {[%emt 0:04:48]} 6. Bb3 {[%emt 0:00:06]} Be7 {[%emt 0:00:30]} 7. O-O {[%emt 0:01:37]} d6 {[%emt 0:00:48]} 8. c3 {[%emt 0:01:03]} O-O {[%emt 0:02:13]} 9. Re1 {[%emt 0:03:58]} Na5 {[%emt 0:08:32]} 10. Bc2 {[%emt 0:00:29]} c5 {[%emt 0:00:05]} 11. d4 {[%emt 0:08:20] C90: Closed Ruy Lopez with 7...d6: Early deviations.} cxd4 {[%emt 0:04:26]} 12. cxd4 {[%emt 0:00:20]} Nc6 {[%emt 0:00:26]} 13. h3 {[%emt 0:06:14] Against Bg4. White is slightly better.} exd4 {[%emt 0:21:49]} 14. Nxd4 {[%emt 0:00:26]} Nxd4 {[%emt 0:00:11]} 15. Qxd4 {[%emt 0:00:07]} Be6 {[%emt 0:03:51]} 16. Nc3 {[%emt 0:03:57]} Rc8 {[%emt 0:01:41] [#]} 17. Bb3 $146 {[%emt 0:08:57]} ({Predecessor:} 17. Bf4 d5 18. exd5 Nxd5 19. Nxd5 Rxc2 20. Nxe7+ Qxe7 21. Rac1 Rxc1 22. Rxc1 Rc8 23. Rxc8+ Bxc8 {½-½ Van Foreest,J (2701)-Artemiev,V (2709) EU-Cup Online Final rapid 2021 (6.1)}) 17... Nd7 {[%emt 0:02:44]} 18. Nd5 {[%emt 0:05:25]} Bxd5 {[%emt 0:01:27]} 19. Bxd5 {[%emt 0:02:25]} Bf6 {[%emt 0:03:30]} 20. Qd1 {[%emt 0:03:32]} Nb6 {[%emt 0:06:22]} 21. Bb7 {[%emt 0:06:28]} Rb8 {[%emt 0:00:45]} 22. Bxa6 {[%emt 0:01:50]} Nc4 {[%emt 0:08:56]} (22... Na4 {feels hotter.} 23. Bxb5 Nxb2 24. Qb3 Qa5) 23. b3 {[%emt 0:01:43]} Bxa1 {[%emt 0:04:21]} (23... Qa5 $17 24. bxc4 Qxa6 25. cxb5 Qxb5) 24. bxc4 $15 {[%emt 0:00:07]} bxc4 {[%emt 0:01:36]} 25. Bxc4 {[%emt 0:00:40]} Be5 {[%emt 0:02:28]} 26. Be3 {[%emt 0:01:56]} Qa5 {[%emt 0:02:36]} 27. Rf1 {[%emt 0:02:59]} Qb4 {[%emt 0:01:07]} 28. Qd5 {[%emt 0:02:28]} Kh8 {[%emt 0:02:38]} 29. Bb3 {[%emt 0:03:43]} Rbc8 {[%emt 0:02:32]} 30. Rd1 {[%emt 0:07:13]} Qc3 {[%emt 0:03:22]} 31. Bd4 {[%emt 0:04:27]} (31. a4 $11) 31... Qc7 {[%emt 0:00:59]} (31... Bxd4 $15 32. Qxd4 Qxd4 33. Rxd4 Rc6) 32. Be3 $11 {[%emt 0:02:37] This pair of bishops is nice.} Qe7 {[%emt 0:01:07] Black is weak on the light squares} 33. f4 {[%emt 0:03:43]} (33. a4 $11) 33... Bf6 {[%emt 0:00:13]} 34. Qf5 {[%emt 0:00:54]} (34. Kh2 $11) 34... Rfe8 $15 {[%emt 0:03:12]} 35. Bd5 {[%emt 0:00:37]} Rc3 {[%emt 0:00:44]} 36. Bf2 {[%emt 0:01:13]} Kg8 {[%emt 0:02:21]} 37. Rb1 {[%emt 0:01:43]} Rc7 {[%emt 0:03:02]} (37... g6 $5 38. Qg4 $8 Rec8 $11) 38. a4 {[%emt 0:02:15][%mdl 1024] White has compensation.} g6 {[%emt 0:00:56]} 39. Qg4 {[%emt 0:00:14]} Bc3 {[%emt 0:00:18][%cal Bf6c3,Bc3d4,Bd4e3][%mdl 32]} (39... Rc2 $5) 40. Rb5 {[%emt 0:00:00] [#]} (40. Kh1 $14 {keeps the upper hand.}) 40... Qf6 $1 $17 {[%emt 0:00:00]} 41. Kh2 {[%emt 0:07:25]} Bd4 {[%emt 0:05:51]} 42. Bh4 {[%emt 0:08:31]} Qg7 {[%emt 0:00:20]} 43. Qd1 {[%emt 0:01:58] Prevents Rc1} (43. Rb1 $17 {might work better.}) 43... Be3 $19 {[%emt 0:04:37]} 44. Qf3 {[%emt 0:05:59]} Qd4 {[%emt 0:07:52]} 45. Rb1 {[%emt 0:01:59] Inhibits Bg1+.} Rc1 $2 {[%emt 0:04:43]} ({Better is} 45... Rec8 $17 {White must now prevent ...Rc1.} 46. Re1 Bd2) 46. Rxc1 $11 {[%emt 0:03:15]} Bxc1 {[%emt 0:00:04]} 47. f5 {[%emt 0:01:15][%cal Bf4f5,Bf5g6,Bg6f7][%mdl 32] fxg6 is the strong threat.} g5 {[%emt 0:03:05]} 48. Bg3 $132 {[%emt 0:00:45][%mdl 2048] White puts up resistance} Be3 {[%emt 0:01:41] And now ...Bg1+ would win.} 49. Qh5 {[%emt 0:02:37]} ({Much weaker is} 49. Bxd6 Rc8 50. h4 Bg1+ 51. Kh1 Qa1 $17) 49... Qf6 {[%emt 0:02:11]} 50. h4 {[%emt 0:03:21]} h6 $2 {[%emt 0:00:41] [#]} (50... gxh4 $11 51. Bxh4 Qg7) 51. Qg6+ $1 $18 {[%emt 0:01:26]} Qxg6 {[%emt 0:01:30]} 52. fxg6 {[%emt 0:00:05][%mdl 4096] Endgame KRB-KB} Kg7 {[%emt 0:00:55]} 53. gxf7 {[%emt 0:00:29]} (53. Bxf7 $2 Rxe4 54. hxg5 Bf4 55. Bxf4 Rxf4 56. gxh6+ Kxh6 $19) 53... Rd8 {[%emt 0:00:11]} (53... Rc8 54. a5 (54. Bxd6 Bf4+ 55. Bxf4 gxf4 $14) (54. hxg5 hxg5 55. Bxd6 Bf4+ 56. Bxf4 gxf4 $16) 54... Rc1) 54. Kh3 {[%emt 0:01:34]} Bc5 {[%emt 0:01:04]} 55. Kg4 {[%emt 0:00:58]} Kg6 {[%emt 0:00:14]} 56. h5+ {[%emt 0:00:28]} Kf6 {[%emt 0:00:19]} 57. Be1 {[%emt 0:00:10] Bc3+ would be deadly.} Bd4 {[%emt 0:00:31] Prevents Bc3} 58. Ba5 {[%emt 0:00:47]} (58. a5 $142 Rf8 59. Bg3) 58... Rf8 {[%emt 0:01:48]} (58... Rc8 $142 59. Bb4 Be5) 59. Bc7 {[%emt 0:03:52]} Ke5 {[%emt 0:00:01]} 60. Kf3 {[%emt 0:00:54]} Rc8 {[%emt 0:00:36] [#]} 61. Ke2 $1 {[%emt 0:00:49]} Ba7 {[%emt 0:00:46] [#]} (61... Bc3 62. a5) 62. Kd3 $1 {[%emt 0:00:24]} Bf2 {[%emt 0:00:13] [#]} (62... g4 63. Bc6) 63. a5 $1 {[%emt 0:00:27][%cal Ba4a5,Ba5a6,Ba6a7][%mdl 32]} g4 {[%emt 0:02:23]} 64. Bb6 {[%emt 0:00:14]} g3 {[%emt 0:00:44]} 65. Bxf2 {[%emt 0:01:06]} (65. Be3 $142 Bxe3 66. Kxe3 Rc3+ 67. Kd2 Rc8 68. a6 Kf6 69. a7 Ke7 70. Ke3) 65... gxf2 {[%emt 0:00:03] KR-KB} 66. Ke2 {[%emt 0:00:06]} Kd4 {[%emt 0:01:47]} 67. Kxf2 {[%emt 0:00:20] White threatens a6 and mate.} Ke5 {[%emt 0:00:24]} 68. a6 {[%emt 0:00:09] White mates.} Rc2+ {[%emt 0:00:16]} 69. Kg3 {[%emt 0:00:08]} Rc3+ {[%emt 0:00:09]} 70. Kh2 {[%emt 0:00:10]} Rc8 {[%emt 0:00:23]} 71. a7 {[%emt 0:00:05] What a bad dream for Black. An entertaining game by Wilk.   Weighted Error Value: White=0.29 (precise) /Black=0.32} 1-0

[Event "Polish Youth B18 Championship 2023"]
[Site "Jastrzebia Gora"]
[Date "2023.03.13"]
[Round "2.5"]
[White "Kacprzak, Kacper"]
[Black "Ciszewski, Krzysztof"]
[Result "1/2-1/2"]
[ECO "B96"]
[WhiteElo "2248"]
[BlackElo "2047"]
[Annotator "TA"]
[PlyCount "84"]
[EventDate "2023.03.11"]
[EventType "swiss"]
[EventCountry "POL"]
[SourceTitle "playchess.com"]
[Source "ChessBase"]
[SourceQuality "1"]
[TimeControl "40/5400+30:1800+30"]

{[%evp 20,84,0,-26,-49,-18,0,0,0,0,0,0,0,0,-26,-21,-10,0,0,-8,0,0,-10,-17,0,0,0,0,0,0,18,20,19,20,19,24,22,20,188,174,174,156,169,172,154,159,133,62,63,62,62,58,56,59,54,18,41,14,14,21,18,0,4,0,0,0,8]} 1. e4 {[%emt 0:00:03]} c5 {[%emt 0:00:13]} 2. Nf3 {[%emt 0:00:02]} d6 {[%emt 0:00:23]} 3. d4 {[%emt 0:00:06]} cxd4 {[%emt 0:00:10]} 4. Nxd4 {[%emt 0:00:04]} Nf6 {[%emt 0:00:07]} 5. Nc3 {[%emt 0:00:04]} a6 {[%emt 0:00:07]} 6. Bg5 {[%emt 0:00:05]} e6 {[%emt 0:00:12]} 7. f4 {[%emt 0:00:05]} h6 {[%emt 0:01:50]} 8. Bh4 {[%emt 0:00:05]} Qb6 {[%emt 0:00:06]} 9. Qd2 {[%emt 0:00:06]} Qxb2 {[%emt 0:00:45]} 10. Rb1 {[%emt 0:00:04]} Qa3 {[%emt 0:00:06]} 11. e5 {[%emt 0:00:04]} dxe5 {[%emt 0:00:09] B97: Sicilian Najdorf: Poisoned Pawn.} 12. fxe5 {[%emt 0:00:04]} Nfd7 {[%emt 0:00:05]} (12... g5 $5 {[%cal Rf8b4]}) 13. Ne4 $1 {[%emt 0:00:06] [#] Strongly threatening Be2.} Qxa2 {[%emt 0:00:55]} 14. Rd1 (14. Nc3 $2 Qa5 15. Be2 Nxe5 $19) 14... Qd5 {[%emt 0:01:47]} (14... Nxe5 $2 15. Nb5 f6 16. Nc7+ (16. Qd8+ Kf7 $16) 16... Kf7 17. Nxa8 $18) 15. Qe3 {[%emt 0:00:16]} Qxe5 {[%emt 0:22:28]} (15... Nxe5 $2 16. Nb3 Nbc6 17. Rxd5 exd5 18. Nec5 $18) 16. Be2 $1 {[%emt 0:00:11]} Bc5 $1 {[%emt 0:01:05] ...Bb6 is the strong threat.} 17. Bg3 {[%emt 0:02:09]} Qd5 {[%emt 0:00:33] And now ...0-0 would win.} 18. c4 {[%emt 0:00:39]} Bxd4 {[%emt 0:00:08]} 19. Rxd4 {[%emt 0:00:05]} Qa5+ {[%emt 0:00:08]} 20. Rd2 $1 {[%emt 0:00:04] [#] Nd6+ would be deadly.} O-O $1 {[%emt 0:02:08]} (20... Qa1+ 21. Bd1 O-O 22. Bd6) 21. Bd6 $1 {[%emt 0:00:05]} (21. O-O f5 22. Nc3 e5 $17) 21... f5 $1 {[%emt 0:03:18][%mdl 4] is more profitable than 21...Rd8 at the moment.} 22. Bxf8 {[%emt 0:00:07]} Nxf8 {[%emt 0:00:06]} (22... fxe4 23. Bd6 $16) 23. Nd6 $36 {[%emt 0:00:18][%mdl 2048] White is pushing.} Nbd7 {[%emt 0:05:33]} 24. g4 {[%emt 0:01:51]} Qa1+ {[%emt 0:13:33]} 25. Bd1 {[%emt 0:09:21] [#] Active counter play!} Qe5 $146 {[%emt 0:02:22]} ({Predecessor:} 25... fxg4 26. O-O Qe5 27. Qf2 Nf6 28. Ne8 Bd7 29. Nxf6+ gxf6 30. Qxf6 Qe3+ 31. Rdf2 e5 {½-½ Xu,Y (2531)-Volokitin,A (2636) Abu Dhabi op 26th 2019 (9)}) 26. Qxe5 {[%emt 0:13:35]} Nxe5 {[%emt 0:00:32]} 27. gxf5 {[%emt 0:00:05]} exf5 {[%emt 0:00:10]} 28. O-O {[%emt 0:00:04] Threatens to win with Re1.} g6 $2 {[%emt 0:16:58]} (28... Be6 $11) 29. Re1 $18 {[%emt 0:02:20]} Nfd7 {[%emt 0:05:58]} 30. Rd5 {[%emt 0:02:34]} a5 {[%emt 0:03:09][%cal Ba6a5,Ba5a4,Ba4a3][%mdl 32]} 31. Rexe5 {[%emt 0:11:23]} (31. Rdxe5 Nxe5 32. Rxe5 Bd7 $16) 31... Nxe5 {[%emt 0:00:07]} 32. Rxe5 {[%emt 0:00:04]} Bd7 {[%emt 0:00:11] Repels Re8+} 33. Nxb7 {[%emt 0:16:17]} ({White should play} 33. Re7 $1 $16 {[%cal Re7d7]} Bc6 34. Bb3 (34. Nxb7 Ra7 $14)) 33... a4 $14 {[%emt 0:04:18]} 34. Nc5 {[%emt 0:05:28]} a3 $1 {[%emt 0:05:22] aiming for ...a2.} 35. Bb3 {[%emt 0:00:09]} (35. Nxd7 $2 {perishes.} a2 36. Nb6 Ra6 $19) 35... Be8 {[%emt 0:03:53]} (35... a2 $2 36. Bxa2 (36. Nxd7 $2 {loses.} a1=Q+ 37. Kf2 Qd4+ 38. Kg3 Qd3+ 39. Kf2 Qxb3 $19) 36... Rxa2 37. Nxd7 $18) 36. Ba2 {[%emt 0:04:42]} Bf7 {[%emt 0:01:47]} 37. Nb7 {[%emt 0:02:50]} Kg7 {[%emt 0:03:34]} 38. Re2 {[%emt 0:06:10]} (38. Nd6 $5 {[%cal Re5e7]} Rd8 39. Nxf7 $14) 38... Rb8 {[%emt 0:02:33] The position is equal.} 39. Nd6 {[%emt 0:01:31] Black must now prevent Nxf7.} Rb2 {[%emt 0:01:43]} 40. Kf2 {[%emt 0:00:00]} Be6 {[%emt 0:00:00]} 41. Ne8+ {[%emt 0:12:24]} Kf7 {[%emt 0:09:57]} 42. Nc7 {[%emt 0:02:38]} f4 {[%emt 0:01:48] Weighted Error Value: White=0.05 (flawless) /Black=0.11 (very precise)} 1/2-1/2